[Event "Titled Tuesday Blitz July 18 Late 2023"]
[White "Zhigalko, Sergei"]
[Black "Krishnan, Varun"]
[WhiteFideId "13502956"]
[BlackFideId "5054508"]
[WhiteElo "2893"]
[BlackElo "2602"]
[Result "1/2-1/2"]
[Round "7"]
[TimeControl "180+2"]
[Date "2023.07.18"]
[WhiteClock "0:00:03"]
[BlackClock "0:00:05"]
[Board "22"]

1. e4 {[%clk 0:03:00]}  a6 {[%clk 0:02:59]} 2. d4 {[%clk 0:03:01]}  e6 {[%clk 0:02:58]} 3. Bd3 {[%clk 0:02:58]}  d5 {[%clk 0:02:58]} 4. e5 {[%clk 0:02:58]}  c5 {[%clk 0:02:57]} 5. c3 {[%clk 0:02:58]}  Nc6 {[%clk 0:02:56]} 6. Nf3 {[%clk 0:02:58]}  Qb6 {[%clk 0:02:42]} 7. dxc5 {[%clk 0:02:47]}  Bxc5 {[%clk 0:02:42]} 8. O-O {[%clk 0:02:48]}  Qc7 {[%clk 0:02:35]} 9. Re1 {[%clk 0:02:46]}  Nge7 {[%clk 0:02:34]} 10. Bf4 {[%clk 0:02:42]}  Bd7 {[%clk 0:02:32]} 11. Nbd2 {[%clk 0:02:42]}  Ng6 {[%clk 0:02:19]} 12. Bg3 {[%clk 0:02:40]}  O-O {[%clk 0:02:15]} 13. Qe2 {[%clk 0:02:04]}  a5 {[%clk 0:02:09]} 14. Ng5 {[%clk 0:01:44]}  h6 {[%clk 0:01:53]} 15. Nh3 {[%clk 0:01:26]}  Nce7 {[%clk 0:01:49]} 16. Nb3 {[%clk 0:01:17]}  Bb6 {[%clk 0:01:42]} 17. a3 {[%clk 0:00:58]}  Qb8 {[%clk 0:01:16]} 18. Rad1 {[%clk 0:00:54]}  Bc7 {[%clk 0:01:12]} 19. Nd4 {[%clk 0:00:47]}  Nc6 {[%clk 0:01:02]} 20. f4 {[%clk 0:00:27]}  f5 {[%clk 0:00:43]} 21. Nb5 {[%clk 0:00:18]}  Bb6+ {[%clk 0:00:37]} 22. Bf2 {[%clk 0:00:19]}  Bxf2+ {[%clk 0:00:29]} 23. Qxf2 {[%clk 0:00:19]}  Nd8 {[%clk 0:00:25]} 24. Nd4 {[%clk 0:00:10]}  Nc6 {[%clk 0:00:25]} 25. Ne2 {[%clk 0:00:04]}  b5 {[%clk 0:00:24]} 26. Qc5 {[%clk 0:00:04]}  Rc8 {[%clk 0:00:23]} 27. Qf2 {[%clk 0:00:02]}  b4 {[%clk 0:00:23]} 28. axb4 {[%clk 0:00:02]}  axb4 {[%clk 0:00:23]} 29. c4 {[%clk 0:00:03]}  Nce7 {[%clk 0:00:19]} 30. b3 {[%clk 0:00:02]}  Bc6 {[%clk 0:00:19]} 31. Nd4 {[%clk 0:00:03]}  Bd7 {[%clk 0:00:18]} 32. Qg3 {[%clk 0:00:02]}  Kh7 {[%clk 0:00:17]} 33. Kh1 {[%clk 0:00:02]}  Qb6 {[%clk 0:00:17]} 34. Bf1 {[%clk 0:00:01]}  Ra3 {[%clk 0:00:13]} 35. Ng1 {[%clk 0:00:01]}  dxc4 {[%clk 0:00:13]} 36. Ngf3 {[%clk 0:00:01]}  cxb3 {[%clk 0:00:12]} 37. Rb1 {[%clk 0:00:02]}  b2 {[%clk 0:00:11]} 38. Rxb2 {[%clk 0:00:02]}  Nd5 {[%clk 0:00:10]} 39. Reb1 {[%clk 0:00:02]}  Ndxf4 {[%clk 0:00:08]} 40. Qf2 {[%clk 0:00:01]}  Nd3 {[%clk 0:00:06]} 41. Bxd3 {[%clk 0:00:01]}  Rxd3 {[%clk 0:00:07]} 42. Rxb4 {[%clk 0:00:02]}  Qc5 {[%clk 0:00:06]} 43. h3 {[%clk 0:00:03]}  Nxe5 {[%clk 0:00:04]} 44. Nxe5 {[%clk 0:00:03]}  Qxe5 {[%clk 0:00:05]} 45. Nf3 {[%clk 0:00:04]}  Qe3 {[%clk 0:00:05]} 46. Qg3 {[%clk 0:00:04]}  f4 {[%clk 0:00:04]} 47. Qg4 {[%clk 0:00:04]}  Rc1+ {[%clk 0:00:05]} 48. Kh2 {[%clk 0:00:03]}  Rdd1 {[%clk 0:00:05]} 49. Rxc1 {[%clk 0:00:03]}  Qxc1 {[%clk 0:00:06]} 50. Qxf4 {[%clk 0:00:03]}  Qxf4+ {[%clk 0:00:05]} 51. Rxf4 {[%clk 0:00:04]}  Bc6 {[%clk 0:00:05]} 52. Ne5 {[%clk 0:00:02]}  Bd5 {[%clk 0:00:05]} 53. Rf2 {[%clk 0:00:03]}  Re1 {[%clk 0:00:05]} 54. Nd3 {[%clk 0:00:03]}  Re3 {[%clk 0:00:05]} 55. Nf4 {[%clk 0:00:02]}  Re4 {[%clk 0:00:05]} 56. Nd3 {[%clk 0:00:02]}  Re3 {[%clk 0:00:05]} 57. Nf4 {[%clk 0:00:02]}  Re4 {[%clk 0:00:05]} 58. Nd3 {[%clk 0:00:03]}  Re3 {[%clk 0:00:05]} 1/2-1/2


[Site "https://www.chess.com"]

[Event "Titled Tuesday Blitz July 18 Late 2023"]
[White "Besedes, Danilo"]
[Black "Bartel, Mateusz"]
[WhiteFideId "946796"]
[BlackFideId "1112635"]
[WhiteElo "2558"]
[BlackElo "2845"]
[Result "0-1"]
[Round "7"]
[TimeControl "180+2"]
[Date "2023.07.18"]
[WhiteClock "0:00:07"]
[BlackClock "0:00:18"]
[Board "23"]

1. b3 {[%clk 0:02:57]}  e5 {[%clk 0:02:57]} 2. Bb2 {[%clk 0:02:58]}  d6 {[%clk 0:02:56]} 3. e3 {[%clk 0:02:58]}  Nc6 {[%clk 0:02:54]} 4. d4 {[%clk 0:02:58]}  exd4 {[%clk 0:02:43]} 5. exd4 {[%clk 0:02:58]}  Nf6 {[%clk 0:02:38]} 6. Nf3 {[%clk 0:02:58]}  Be7 {[%clk 0:02:34]} 7. Nbd2 {[%clk 0:02:54]}  O-O {[%clk 0:02:31]} 8. Be2 {[%clk 0:02:53]}  Re8 {[%clk 0:02:30]} 9. O-O {[%clk 0:02:54]}  Bf8 {[%clk 0:02:31]} 10. a3 {[%clk 0:02:53]}  Ne7 {[%clk 0:02:27]} 11. Bd3 {[%clk 0:02:52]}  Ng6 {[%clk 0:02:25]} 12. Re1 {[%clk 0:02:51]}  c6 {[%clk 0:02:18]} 13. h3 {[%clk 0:02:35]}  Bd7 {[%clk 0:02:16]} 14. Ne4 {[%clk 0:02:30]}  Nxe4 {[%clk 0:02:14]} 15. Rxe4 {[%clk 0:02:28]}  Rxe4 {[%clk 0:02:13]} 16. Bxe4 {[%clk 0:02:29]}  Qf6 {[%clk 0:02:07]} 17. Bxg6 {[%clk 0:02:18]}  Qxg6 {[%clk 0:01:59]} 18. Kf1 {[%clk 0:02:03]}  Be7 {[%clk 0:01:47]} 19. Qd2 {[%clk 0:01:52]}  Bf5 {[%clk 0:01:42]} 20. Re1 {[%clk 0:01:44]}  Bf6 {[%clk 0:01:42]} 21. c4 {[%clk 0:01:43]}  h6 {[%clk 0:01:35]} 22. d5 {[%clk 0:01:27]}  Be4 {[%clk 0:01:20]} 23. Bxf6 {[%clk 0:00:51]}  Bxf3 {[%clk 0:01:20]} 24. gxf3 {[%clk 0:00:44]}  Qxf6 {[%clk 0:01:20]} 25. dxc6 {[%clk 0:00:33]}  Qxf3 {[%clk 0:01:08]} 26. cxb7 {[%clk 0:00:17]}  Qh1+ {[%clk 0:01:03]} 27. Ke2 {[%clk 0:00:17]}  Qxb7 {[%clk 0:00:57]} 28. Qd3 {[%clk 0:00:16]}  a5 {[%clk 0:00:51]} 29. Kd2 {[%clk 0:00:16]}  Rb8 {[%clk 0:00:52]} 30. Kc2 {[%clk 0:00:16]}  Qb6 {[%clk 0:00:47]} 31. Re3 {[%clk 0:00:16]}  Qc5 {[%clk 0:00:47]} 32. Kb2 {[%clk 0:00:15]}  h5 {[%clk 0:00:40]} 33. Qd5 {[%clk 0:00:14]}  Qb6 {[%clk 0:00:27]} 34. Qxh5 {[%clk 0:00:13]}  Qd4+ {[%clk 0:00:26]} 35. Kc2 {[%clk 0:00:12]}  Qa1 {[%clk 0:00:24]} 36. Qxa5 {[%clk 0:00:09]}  Qa2+ {[%clk 0:00:23]} 37. Kc1 {[%clk 0:00:07]}  Qxf2 {[%clk 0:00:24]} 38. Qd2 {[%clk 0:00:07]}  Qf6 {[%clk 0:00:21]} 39. Kb1 {[%clk 0:00:07]}  Qf5+ {[%clk 0:00:21]} 40. Ka2 {[%clk 0:00:07]}  f6 {[%clk 0:00:20]} 41. Qe2 {[%clk 0:00:07]}  Kh7 {[%clk 0:00:19]} 42. Qd3 {[%clk 0:00:05]}  Qxd3 {[%clk 0:00:19]} 43. Rxd3 {[%clk 0:00:06]}  f5 {[%clk 0:00:19]} 44. Rxd6 {[%clk 0:00:07]}  f4 {[%clk 0:00:20]} 45. Rd3 {[%clk 0:00:07]}  g6 {[%clk 0:00:19]} 46. Rf3 {[%clk 0:00:07]}  g5 {[%clk 0:00:20]} 47. b4 {[%clk 0:00:06]}  Kg6 {[%clk 0:00:20]} 48. c5 {[%clk 0:00:07]}  Kf5 {[%clk 0:00:21]} 49. Kb3 {[%clk 0:00:07]}  Ke4 {[%clk 0:00:21]} 50. Rf1 {[%clk 0:00:08]}  Rh8 {[%clk 0:00:21]} 51. c6 {[%clk 0:00:07]}  Rxh3+ {[%clk 0:00:21]} 52. Kc4 {[%clk 0:00:08]}  Rh2 {[%clk 0:00:21]} 53. b5 {[%clk 0:00:08]}  Rc2+ {[%clk 0:00:20]} 54. Kb4 {[%clk 0:00:08]}  f3 {[%clk 0:00:20]} 55. a4 {[%clk 0:00:09]}  g4 {[%clk 0:00:20]} 56. a5 {[%clk 0:00:09]}  g3 {[%clk 0:00:21]} 57. a6 {[%clk 0:00:10]}  f2 {[%clk 0:00:19]} 58. a7 {[%clk 0:00:10]}  g2 {[%clk 0:00:19]} 59. Rxf2 {[%clk 0:00:10]}  Rxf2 {[%clk 0:00:17]} 60. a8=Q {[%clk 0:00:10]}  g1=Q {[%clk 0:00:18]} 61. Qe8+ {[%clk 0:00:10]}  Kd3 {[%clk 0:00:18]} 62. Qd7+ {[%clk 0:00:11]}  Kc2 {[%clk 0:00:18]} 63. c7 {[%clk 0:00:10]}  Rf4+ {[%clk 0:00:18]} 64. Ka3 {[%clk 0:00:07]}  Qa7# {[%clk 0:00:18]} 0-1


[Site "https://www.chess.com"]

[Event "Titled Tuesday Blitz July 18 Late 2023"]
[White "Karacsonyi, Gellert"]
[Black "Richter, Paul"]
[WhiteFideId "764620"]
[BlackFideId "2046350"]
[WhiteElo "2816"]
[BlackElo "2532"]
[Result "1-0"]
[Round "7"]
[TimeControl "180+2"]
[Date "2023.07.18"]
[WhiteClock "0:00:09"]
[BlackClock "0:00:02"]
[Board "25"]

1. e4 {[%clk 0:03:00]}  c5 {[%clk 0:02:59]} 2. Nf3 {[%clk 0:03:00]}  d6 {[%clk 0:02:58]} 3. d4 {[%clk 0:03:01]}  cxd4 {[%clk 0:02:59]} 4. Nxd4 {[%clk 0:03:02]}  Nf6 {[%clk 0:02:59]} 5. Nc3 {[%clk 0:03:02]}  g6 {[%clk 0:03:00]} 6. Be3 {[%clk 0:03:02]}  Bg7 {[%clk 0:03:00]} 7. f3 {[%clk 0:03:03]}  Nc6 {[%clk 0:03:01]} 8. Qd2 {[%clk 0:03:03]}  O-O {[%clk 0:03:01]} 9. Bc4 {[%clk 0:03:03]}  Bd7 {[%clk 0:03:01]} 10. O-O-O {[%clk 0:03:04]}  Rb8 {[%clk 0:03:00]} 11. Bb3 {[%clk 0:03:04]}  a5 {[%clk 0:03:00]} 12. Nd5 {[%clk 0:02:55]}  Nxd4 {[%clk 0:02:55]} 13. Bxd4 {[%clk 0:02:55]}  Nxd5 {[%clk 0:02:49]} 14. Bxg7 {[%clk 0:02:54]}  Kxg7 {[%clk 0:02:48]} 15. exd5 {[%clk 0:02:53]}  b5 {[%clk 0:02:42]} 16. a3 {[%clk 0:02:52]}  b4 {[%clk 0:02:32]} 17. axb4 {[%clk 0:02:49]}  Rxb4 {[%clk 0:02:28]} 18. h4 {[%clk 0:02:46]}  Qc7 {[%clk 0:01:39]} 19. h5 {[%clk 0:02:22]}  Rxb3 {[%clk 0:01:31]} 20. hxg6 {[%clk 0:02:22]}  fxg6 {[%clk 0:01:32]} 21. Qh6+ {[%clk 0:02:22]}  Kf7 {[%clk 0:01:32]} 22. Qxh7+ {[%clk 0:02:22]}  Ke8 {[%clk 0:01:33]} 23. Rde1 {[%clk 0:02:17]}  Bf5 {[%clk 0:01:30]} 24. Re2 {[%clk 0:01:56]}  Re3 {[%clk 0:01:24]} 25. Rd2 {[%clk 0:01:45]}  Rd3 {[%clk 0:00:44]} 26. Rhd1 {[%clk 0:01:04]}  Rxd5 {[%clk 0:00:40]} 27. g4 {[%clk 0:01:04]}  Rxd2 {[%clk 0:00:40]} 28. Rxd2 {[%clk 0:01:05]}  Bd7 {[%clk 0:00:35]} 29. Qxg6+ {[%clk 0:01:05]}  Kd8 {[%clk 0:00:36]} 30. Rd3 {[%clk 0:00:59]}  Qc5 {[%clk 0:00:30]} 31. Kb1 {[%clk 0:00:48]}  Qg1+ {[%clk 0:00:24]} 32. Ka2 {[%clk 0:00:48]}  Qf2 {[%clk 0:00:25]} 33. Rb3 {[%clk 0:00:37]}  Rxf3 {[%clk 0:00:19]} 34. Qg8+ {[%clk 0:00:37]}  Kc7 {[%clk 0:00:14]} 35. Qb8+ {[%clk 0:00:28]}  Kc6 {[%clk 0:00:14]} 36. Qb7+ {[%clk 0:00:22]}  Kc5 {[%clk 0:00:13]} 37. Qxf3 {[%clk 0:00:17]}  Qxf3 {[%clk 0:00:13]} 38. Rxf3 {[%clk 0:00:18]}  Bxg4 {[%clk 0:00:13]} 39. Rc3+ {[%clk 0:00:16]}  Kb5 {[%clk 0:00:12]} 40. Rc7 {[%clk 0:00:16]}  e5 {[%clk 0:00:12]} 41. Kb3 {[%clk 0:00:16]}  Be6+ {[%clk 0:00:12]} 42. Kc3 {[%clk 0:00:14]}  Kb6 {[%clk 0:00:12]} 43. Re7 {[%clk 0:00:13]}  Bf5 {[%clk 0:00:13]} 44. Re8 {[%clk 0:00:12]}  Bd7 {[%clk 0:00:12]} 45. Rd8 {[%clk 0:00:12]}  Kc7 {[%clk 0:00:11]} 46. Ra8 {[%clk 0:00:13]}  a4 {[%clk 0:00:11]} 47. Ra7+ {[%clk 0:00:12]}  Kd8 {[%clk 0:00:07]} 48. Kc4 {[%clk 0:00:10]}  Bc6 {[%clk 0:00:07]} 49. Kd3 {[%clk 0:00:08]}  Kc8 {[%clk 0:00:07]} 50. c3 {[%clk 0:00:09]}  Kd8 {[%clk 0:00:07]} 51. Rg7 {[%clk 0:00:07]}  Kc8 {[%clk 0:00:07]} 52. Kc4 {[%clk 0:00:07]}  Kd8 {[%clk 0:00:07]} 53. Kb4 {[%clk 0:00:08]}  e4 {[%clk 0:00:07]} 54. Kc4 {[%clk 0:00:08]}  Kc8 {[%clk 0:00:07]} 55. Kd4 {[%clk 0:00:08]}  Kd8 {[%clk 0:00:07]} 56. Ra7 {[%clk 0:00:08]}  Kc8 {[%clk 0:00:07]} 57. Ra6 {[%clk 0:00:06]}  Kb7 {[%clk 0:00:07]} 58. Ra5 {[%clk 0:00:07]}  Kb6 {[%clk 0:00:07]} 59. Rg5 {[%clk 0:00:08]}  Kc7 {[%clk 0:00:07]} 60. Rg7+ {[%clk 0:00:08]}  Kb6 {[%clk 0:00:07]} 61. Re7 {[%clk 0:00:08]}  Bb7 {[%clk 0:00:06]} 62. Rd7 {[%clk 0:00:07]}  Kc6 {[%clk 0:00:04]} 63. Re7 {[%clk 0:00:07]}  Kb6 {[%clk 0:00:04]} 64. Re6 {[%clk 0:00:08]}  Kc7 {[%clk 0:00:05]} 65. c4 {[%clk 0:00:08]}  Bc6 {[%clk 0:00:05]} 66. Re7+ {[%clk 0:00:08]}  Kb6 {[%clk 0:00:05]} 67. Rg7 {[%clk 0:00:06]}  Bb7 {[%clk 0:00:05]} 68. Rg6 {[%clk 0:00:06]}  Kc7 {[%clk 0:00:05]} 69. Rf6 {[%clk 0:00:06]}  Bc6 {[%clk 0:00:05]} 70. Rh6 {[%clk 0:00:06]}  Bb7 {[%clk 0:00:05]} 71. Rh7+ {[%clk 0:00:06]}  Kb6 {[%clk 0:00:05]} 72. Rd7 {[%clk 0:00:06]}  Kc6 {[%clk 0:00:06]} 73. Rd8 {[%clk 0:00:06]}  Kc7 {[%clk 0:00:06]} 74. Rf8 {[%clk 0:00:06]}  Bc6 {[%clk 0:00:07]} 75. Kc3 {[%clk 0:00:05]}  Kb6 {[%clk 0:00:07]} 76. Rf1 {[%clk 0:00:05]}  Kc5 {[%clk 0:00:07]} 77. Rd1 {[%clk 0:00:06]}  d5 {[%clk 0:00:06]} 78. cxd5 {[%clk 0:00:05]}  Bxd5 {[%clk 0:00:07]} 79. Re1 {[%clk 0:00:06]}  Bc6 {[%clk 0:00:07]} 80. Re3 {[%clk 0:00:06]}  Bd5 {[%clk 0:00:07]} 81. Rg3 {[%clk 0:00:07]}  Bc6 {[%clk 0:00:07]} 82. Rg5+ {[%clk 0:00:07]}  Bd5 {[%clk 0:00:07]} 83. Rg7 {[%clk 0:00:07]}  Bc6 {[%clk 0:00:07]} 84. Re7 {[%clk 0:00:07]}  Kd6 {[%clk 0:00:07]} 85. Ra7 {[%clk 0:00:07]}  Kc5 {[%clk 0:00:08]} 86. Ra5+ {[%clk 0:00:07]}  Bb5 {[%clk 0:00:08]} 87. Kd2 {[%clk 0:00:07]}  Kb4 {[%clk 0:00:07]} 88. Ra7 {[%clk 0:00:08]}  Bc4 {[%clk 0:00:08]} 89. Rb7+ {[%clk 0:00:08]}  Kc5 {[%clk 0:00:07]} 90. Ke3 {[%clk 0:00:09]}  Bd5 {[%clk 0:00:07]} 91. Ra7 {[%clk 0:00:09]}  Bc6 {[%clk 0:00:07]} 92. Ra6 {[%clk 0:00:08]}  Bb5 {[%clk 0:00:07]} 93. Ra8 {[%clk 0:00:07]}  Bc6 {[%clk 0:00:08]} 94. Rb8 {[%clk 0:00:07]}  Kc4 {[%clk 0:00:07]} 95. Rc8 {[%clk 0:00:07]}  Kc5 {[%clk 0:00:08]} 96. Kd2 {[%clk 0:00:07]}  Kb5 {[%clk 0:00:07]} 97. Kc3 {[%clk 0:00:07]}  Kc5 {[%clk 0:00:08]} 98. Rc7 {[%clk 0:00:07]}  Kb6 {[%clk 0:00:08]} 99. Re7 {[%clk 0:00:07]}  Kc5 {[%clk 0:00:09]} 100. Re5+ {[%clk 0:00:08]}  Bd5 {[%clk 0:00:09]} 101. Re8 {[%clk 0:00:08]}  Bc6 {[%clk 0:00:09]} 102. Re7 {[%clk 0:00:08]}  Bd5 {[%clk 0:00:09]} 103. Re5 {[%clk 0:00:07]}  Kd6 {[%clk 0:00:08]} 104. Kd4 {[%clk 0:00:08]}  Bc6 {[%clk 0:00:08]} 105. Ra5 {[%clk 0:00:08]}  Kc7 {[%clk 0:00:06]} 106. Ra7+ {[%clk 0:00:08]}  Kb6 {[%clk 0:00:06]} 107. Re7 {[%clk 0:00:09]}  Kb5 {[%clk 0:00:06]} 108. Re6 {[%clk 0:00:09]}  Bb7 {[%clk 0:00:05]} 109. Re5+ {[%clk 0:00:07]}  Kb4 {[%clk 0:00:05]} 110. Re8 {[%clk 0:00:08]}  Bc6 {[%clk 0:00:05]} 111. Rb8+ {[%clk 0:00:06]}  Bb5 {[%clk 0:00:02]} 112. Kxe4 {[%clk 0:00:06]}  Kc4 {[%clk 0:00:03]} 113. Ke3 {[%clk 0:00:05]}  Bc6 {[%clk 0:00:02]} 114. Kd2 {[%clk 0:00:06]}  Bd5 {[%clk 0:00:03]} 115. Kc1 {[%clk 0:00:05]}  Be4 {[%clk 0:00:02]} 116. Rc8+ {[%clk 0:00:05]}  Kb4 {[%clk 0:00:02]} 117. Rc3 {[%clk 0:00:06]}  Bd5 {[%clk 0:00:02]} 118. Rd3 {[%clk 0:00:06]}  Bb3 {[%clk 0:00:03]} 119. Rd4+ {[%clk 0:00:06]}  Bc4 {[%clk 0:00:03]} 120. Kc2 {[%clk 0:00:06]}  Kc5 {[%clk 0:00:02]} 121. Kc3 {[%clk 0:00:06]}  Bb3 {[%clk 0:00:02]} 122. Rh4 {[%clk 0:00:07]}  Kb5 {[%clk 0:00:03]} 123. Rh5+ {[%clk 0:00:07]}  Kc6 {[%clk 0:00:03]} 124. Kb4 {[%clk 0:00:07]}  Kd6 {[%clk 0:00:03]} 125. Ra5 {[%clk 0:00:08]}  Kc6 {[%clk 0:00:03]} 126. Rxa4 {[%clk 0:00:08]}  Bxa4 {[%clk 0:00:04]} 127. Kxa4 {[%clk 0:00:08]}  Kc5 {[%clk 0:00:03]} 128. Ka5 {[%clk 0:00:08]}  Kc6 {[%clk 0:00:04]} 129. Kb4 {[%clk 0:00:08]}  Kb6 {[%clk 0:00:04]} 130. b3 {[%clk 0:00:09]}  Kc6 {[%clk 0:00:03]} 131. Ka5 {[%clk 0:00:09]}  Kb7 {[%clk 0:00:03]} 132. Kb5 {[%clk 0:00:09]}  Kc7 {[%clk 0:00:02]} 133. Ka6 {[%clk 0:00:09]} 1-0


[Site "https://www.chess.com"]

[Event "Titled Tuesday Blitz July 18 Late 2023"]
[White "Bortnyk, Mykola"]
[Black "HamedWafa4"]
[WhiteFideId "14120836"]
[WhiteElo "3020"]
[BlackElo "2611"]
[Result "1-0"]
[Round "7"]
[TimeControl "180+2"]
[Date "2023.07.18"]
[WhiteClock "0:00:38"]
[BlackClock "0:00:00"]
[Board "26"]

1. e4 {[%clk 0:02:57]}  e5 {[%clk 0:02:57]} 2. Bc4 {[%clk 0:02:56]}  Nf6 {[%clk 0:02:56]} 3. d3 {[%clk 0:02:56]}  Bc5 {[%clk 0:02:56]} 4. Nc3 {[%clk 0:02:51]}  O-O {[%clk 0:02:55]} 5. Bg5 {[%clk 0:02:46]}  h6 {[%clk 0:02:50]} 6. Bh4 {[%clk 0:02:45]}  c6 {[%clk 0:02:48]} 7. Nf3 {[%clk 0:02:43]}  d6 {[%clk 0:02:46]} 8. h3 {[%clk 0:02:41]}  Be6 {[%clk 0:02:41]} 9. Qd2 {[%clk 0:02:38]}  Bxc4 {[%clk 0:02:35]} 10. dxc4 {[%clk 0:02:39]}  Bb4 {[%clk 0:02:33]} 11. O-O-O {[%clk 0:02:31]}  Bxc3 {[%clk 0:02:00]} 12. Qxc3 {[%clk 0:02:30]}  Nxe4 {[%clk 0:02:00]} 13. Qe3 {[%clk 0:02:14]}  Ng5 {[%clk 0:01:58]} 14. Nxe5 {[%clk 0:02:05]}  Re8 {[%clk 0:01:51]} 15. f4 {[%clk 0:02:03]}  Qa5 {[%clk 0:01:30]} 16. Kb1 {[%clk 0:01:54]}  Nh7 {[%clk 0:01:21]} 17. Rxd6 {[%clk 0:01:52]}  f6 {[%clk 0:01:16]} 18. c5 {[%clk 0:01:31]}  fxe5 {[%clk 0:01:09]} 19. Qb3+ {[%clk 0:01:29]}  Kh8 {[%clk 0:01:09]} 20. Qxb7 {[%clk 0:01:29]}  Na6 {[%clk 0:01:02]} 21. Rg6 {[%clk 0:01:24]}  Rg8 {[%clk 0:00:59]} 22. Rxg7 {[%clk 0:01:12]}  Rxg7 {[%clk 0:00:55]} 23. Qxa8+ {[%clk 0:01:12]}  Rg8 {[%clk 0:00:55]} 24. Qxc6 {[%clk 0:01:13]}  Nxc5 {[%clk 0:00:50]} 25. Qxh6 {[%clk 0:01:12]}  Ne4 {[%clk 0:00:46]} 26. fxe5 {[%clk 0:01:03]}  Qxe5 {[%clk 0:00:33]} 27. Re1 {[%clk 0:00:59]}  Nc3+ {[%clk 0:00:31]} 28. bxc3 {[%clk 0:00:57]}  Rb8+ {[%clk 0:00:30]} 29. Kc1 {[%clk 0:00:57]}  Qxc3 {[%clk 0:00:25]} 30. Qe3 {[%clk 0:00:41]}  Qb2+ {[%clk 0:00:19]} 31. Kd2 {[%clk 0:00:42]}  Rb5 {[%clk 0:00:06]} 32. Qe8+ {[%clk 0:00:39]}  Kg7 {[%clk 0:00:06]} 33. Re7+ {[%clk 0:00:37]}  Kh6 {[%clk 0:00:05]} 34. Re6+ {[%clk 0:00:38]}  Kg7 {[%clk 0:00:00]} 35. Qg6+ {[%clk 0:00:38]} 1-0


[Site "https://www.chess.com"]

[Event "Titled Tuesday Blitz July 18 Late 2023"]
[White "Anton Guijarro, David"]
[Black "Pinheiro, Iung Alicio de O."]
[WhiteFideId "2285525"]
[BlackFideId "2104350"]
[WhiteElo "2916"]
[BlackElo "2601"]
[Result "1-0"]
[Round "7"]
[TimeControl "180+2"]
[Date "2023.07.18"]
[WhiteClock "0:00:47"]
[BlackClock "0:00:05"]
[Board "30"]

1. d4 {[%clk 0:03:00]}  Nf6 {[%clk 0:02:58]} 2. c3 {[%clk 0:03:01]}  e6 {[%clk 0:02:54]} 3. Bg5 {[%clk 0:03:01]}  h6 {[%clk 0:02:50]} 4. Bh4 {[%clk 0:03:01]}  d6 {[%clk 0:02:44]} 5. Nd2 {[%clk 0:03:00]}  g5 {[%clk 0:02:44]} 6. Bg3 {[%clk 0:03:00]}  Nh5 {[%clk 0:02:44]} 7. e3 {[%clk 0:02:57]}  Nxg3 {[%clk 0:02:42]} 8. hxg3 {[%clk 0:02:58]}  Bg7 {[%clk 0:02:38]} 9. f4 {[%clk 0:02:57]}  Nd7 {[%clk 0:02:06]} 10. Ngf3 {[%clk 0:02:57]}  Qe7 {[%clk 0:02:02]} 11. Qc2 {[%clk 0:02:51]}  g4 {[%clk 0:01:47]} 12. Nh4 {[%clk 0:02:46]}  b6 {[%clk 0:01:26]} 13. O-O-O {[%clk 0:02:36]}  Bb7 {[%clk 0:01:26]} 14. e4 {[%clk 0:02:37]}  O-O-O {[%clk 0:01:26]} 15. Qa4 {[%clk 0:02:36]}  Kb8 {[%clk 0:01:24]} 16. Ba6 {[%clk 0:02:37]}  Ba8 {[%clk 0:01:23]} 17. Rhe1 {[%clk 0:02:37]}  h5 {[%clk 0:01:21]} 18. Kb1 {[%clk 0:02:36]}  Bf6 {[%clk 0:01:15]} 19. Rh1 {[%clk 0:02:37]}  d5 {[%clk 0:00:59]} 20. e5 {[%clk 0:02:26]}  Bg7 {[%clk 0:00:58]} 21. Nb3 {[%clk 0:02:02]}  Bb7 {[%clk 0:00:54]} 22. Bxb7 {[%clk 0:01:44]}  Kxb7 {[%clk 0:00:54]} 23. f5 {[%clk 0:01:18]}  Qg5 {[%clk 0:00:37]} 24. Qb5 {[%clk 0:01:10]}  Ka8 {[%clk 0:00:30]} 25. Qc6+ {[%clk 0:01:08]}  Kb8 {[%clk 0:00:31]} 26. fxe6 {[%clk 0:01:08]}  fxe6 {[%clk 0:00:31]} 27. Qxe6 {[%clk 0:01:09]}  Nf8 {[%clk 0:00:22]} 28. Qf5 {[%clk 0:01:08]}  Qe7 {[%clk 0:00:21]} 29. Rdf1 {[%clk 0:01:07]}  Rh6 {[%clk 0:00:20]} 30. Qf7 {[%clk 0:01:06]}  Re6 {[%clk 0:00:20]} 31. Qxe7 {[%clk 0:01:05]}  Rxe7 {[%clk 0:00:20]} 32. Nf5 {[%clk 0:01:05]}  Rf7 {[%clk 0:00:19]} 33. Nxg7 {[%clk 0:01:05]}  Rxg7 {[%clk 0:00:19]} 34. Rxh5 {[%clk 0:01:06]}  Ne6 {[%clk 0:00:19]} 35. Nc1 {[%clk 0:01:06]}  c5 {[%clk 0:00:19]} 36. Ne2 {[%clk 0:01:07]}  cxd4 {[%clk 0:00:19]} 37. Nxd4 {[%clk 0:01:07]}  Nxd4 {[%clk 0:00:17]} 38. cxd4 {[%clk 0:01:08]}  Rc8 {[%clk 0:00:18]} 39. e6 {[%clk 0:01:07]}  Re7 {[%clk 0:00:17]} 40. Re1 {[%clk 0:01:07]}  Rc6 {[%clk 0:00:17]} 41. Rhe5 {[%clk 0:01:02]}  Kc7 {[%clk 0:00:17]} 42. Rxd5 {[%clk 0:00:57]}  Rcxe6 {[%clk 0:00:17]} 43. Rxe6 {[%clk 0:00:57]}  Rxe6 {[%clk 0:00:18]} 44. Rg5 {[%clk 0:00:58]}  Re1+ {[%clk 0:00:18]} 45. Kc2 {[%clk 0:00:59]}  Re2+ {[%clk 0:00:19]} 46. Kc3 {[%clk 0:00:59]}  Rxg2 {[%clk 0:00:20]} 47. Rxg4 {[%clk 0:00:59]}  a5 {[%clk 0:00:20]} 48. a4 {[%clk 0:01:00]}  Rf2 {[%clk 0:00:20]} 49. Rg6 {[%clk 0:00:59]}  Kb7 {[%clk 0:00:19]} 50. b3 {[%clk 0:00:59]}  Kc7 {[%clk 0:00:19]} 51. g4 {[%clk 0:00:59]}  Rg2 {[%clk 0:00:18]} 52. g5 {[%clk 0:00:59]}  Rg3+ {[%clk 0:00:18]} 53. Kc4 {[%clk 0:00:59]}  Kb7 {[%clk 0:00:18]} 54. Rg8 {[%clk 0:00:59]}  Kc6 {[%clk 0:00:18]} 55. g6 {[%clk 0:00:59]}  Kc7 {[%clk 0:00:18]} 56. g7 {[%clk 0:00:59]}  Kb7 {[%clk 0:00:18]} 57. d5 {[%clk 0:00:59]}  Rg4+ {[%clk 0:00:18]} 58. Kd3 {[%clk 0:00:59]}  Rg1 {[%clk 0:00:17]} 59. d6 {[%clk 0:00:59]}  Rg6 {[%clk 0:00:15]} 60. Kc3 {[%clk 0:00:48]}  Rg4 {[%clk 0:00:05]} 61. d7 {[%clk 0:00:47]} 1-0


[Site "https://www.chess.com"]